[Event "Titled Tuesday Blitz March 21 Late 2023"]
[White "Mustafayev, Farid"]
[Black "Gharibyan, Mamikon"]
[WhiteFideId "13408771"]
[BlackFideId "13308300"]
[WhiteElo "2269"]
[BlackElo "2445"]
[Result "0-1"]
[Round "07"]
[TimeControl "180+2"]
[Date "2023.03.21"]
[WhiteClock "0:00:17"]
[BlackClock "0:00:29"]

1. Nf3 {[%clk 0:03:00]}  g6 {[%clk 0:03:00]} 2. c4 {[%clk 0:03:00]}  Bg7 {[%clk 0:03:00]} 3. g3 {[%clk 0:02:59]}  Nf6 {[%clk 0:02:59]} 4. Bg2 {[%clk 0:03:00]}  O-O {[%clk 0:02:57]} 5. O-O {[%clk 0:03:00]}  c6 {[%clk 0:02:58]} 6. b3 {[%clk 0:02:59]}  Ne4 {[%clk 0:02:54]} 7. d4 {[%clk 0:02:59]}  d5 {[%clk 0:02:54]} 8. Bb2 {[%clk 0:02:59]}  Bf5 {[%clk 0:02:52]} 9. Nbd2 {[%clk 0:02:59]}  Nd7 {[%clk 0:02:44]} 10. Nh4 {[%clk 0:02:49]}  Nxd2 {[%clk 0:02:43]} 11. Qxd2 {[%clk 0:02:50]}  Be6 {[%clk 0:02:41]} 12. Rac1 {[%clk 0:02:36]}  a5 {[%clk 0:02:39]} 13. e4 {[%clk 0:02:17]}  dxe4 {[%clk 0:02:16]} 14. Bxe4 {[%clk 0:02:16]}  a4 {[%clk 0:02:10]} 15. b4 {[%clk 0:02:08]}  a3 {[%clk 0:02:05]} 16. Ba1 {[%clk 0:02:08]}  Nb6 {[%clk 0:02:01]} 17. Qd3 {[%clk 0:01:25]}  Ra4 {[%clk 0:01:54]} 18. Qb3 {[%clk 0:01:25]}  Qd6 {[%clk 0:01:33]} 19. Rfd1 {[%clk 0:01:17]}  Qxb4 {[%clk 0:01:29]} 20. Bd3 {[%clk 0:00:46]}  Nxc4 {[%clk 0:01:22]} 21. Bc3 {[%clk 0:00:40]}  Qb5 {[%clk 0:01:13]} 22. Rb1 {[%clk 0:00:30]}  Qa6 {[%clk 0:00:56]} 23. Qc2 {[%clk 0:00:30]}  b5 {[%clk 0:00:53]} 24. f4 {[%clk 0:00:28]}  Nb2 {[%clk 0:00:50]} 25. Rxb2 {[%clk 0:00:24]}  axb2 {[%clk 0:00:50]} 26. Qxb2 {[%clk 0:00:25]}  Rxa2 {[%clk 0:00:47]} 27. Qb4 {[%clk 0:00:25]}  Bd5 {[%clk 0:00:46]} 28. Qxe7 {[%clk 0:00:23]}  Qa3 {[%clk 0:00:39]} 29. Qxa3 {[%clk 0:00:20]}  Rxa3 {[%clk 0:00:40]} 30. Bb4 {[%clk 0:00:21]}  Bxd4+ {[%clk 0:00:34]} 31. Kf1 {[%clk 0:00:22]}  Rxd3 {[%clk 0:00:33]} 32. Rxd3 {[%clk 0:00:21]}  Bc4 {[%clk 0:00:31]} 33. Ke2 {[%clk 0:00:17]}  Ra8 {[%clk 0:00:29]} 0-1


[Site "https://www.chess.com"]

[Event "Titled Tuesday Blitz March 21 Late 2023"]
[White "Kakabayev, Mergen"]
[Black "Van Foreest, Lucas"]
[WhiteFideId "14002990"]
[BlackFideId "1039792"]
[WhiteElo "2259"]
[BlackElo "2519"]
[Result "0-1"]
[Round "07"]
[TimeControl "180+2"]
[Date "2023.03.21"]
[WhiteClock "0:01:41"]
[BlackClock "0:02:00"]

1. e4 {[%clk 0:03:00]}  b5 {[%clk 0:02:59]} 2. Bxb5 {[%clk 0:02:59]}  Bb7 {[%clk 0:02:59]} 3. Nc3 {[%clk 0:02:58]}  f5 {[%clk 0:03:00]} 4. d3 {[%clk 0:02:55]}  Nf6 {[%clk 0:03:00]} 5. f3 {[%clk 0:02:54]}  fxe4 {[%clk 0:02:58]} 6. dxe4 {[%clk 0:02:53]}  e5 {[%clk 0:02:58]} 7. Be3 {[%clk 0:02:52]}  Bb4 {[%clk 0:02:57]} 8. Ne2 {[%clk 0:02:50]}  O-O {[%clk 0:02:56]} 9. O-O {[%clk 0:02:50]}  d6 {[%clk 0:02:57]} 10. a3 {[%clk 0:02:48]}  Ba5 {[%clk 0:02:57]} 11. Bc4+ {[%clk 0:02:45]}  Kh8 {[%clk 0:02:56]} 12. Nd5 {[%clk 0:02:46]}  Nbd7 {[%clk 0:02:54]} 13. Nec3 {[%clk 0:02:37]}  Nh5 {[%clk 0:02:44]} 14. b4 {[%clk 0:02:27]}  Bb6 {[%clk 0:02:45]} 15. Nxb6 {[%clk 0:02:27]}  axb6 {[%clk 0:02:45]} 16. a4 {[%clk 0:02:26]}  Nf4 {[%clk 0:02:46]} 17. g3 {[%clk 0:02:24]}  Nh3+ {[%clk 0:02:39]} 18. Kg2 {[%clk 0:02:24]}  Ng5 {[%clk 0:02:39]} 19. h4 {[%clk 0:02:22]}  Nf7 {[%clk 0:02:39]} 20. a5 {[%clk 0:02:21]}  bxa5 {[%clk 0:02:39]} 21. bxa5 {[%clk 0:02:22]}  Nf6 {[%clk 0:02:38]} 22. a6 {[%clk 0:02:21]}  Bc6 {[%clk 0:02:38]} 23. a7 {[%clk 0:02:20]}  Qd7 {[%clk 0:02:38]} 24. Nd5 {[%clk 0:02:19]}  Nd8 {[%clk 0:02:35]} 25. Qd3 {[%clk 0:02:15]}  Ne6 {[%clk 0:02:34]} 26. Nxf6 {[%clk 0:02:10]}  Rxf6 {[%clk 0:02:34]} 27. Bxe6 {[%clk 0:02:09]}  Qxe6 {[%clk 0:02:28]} 28. Rab1 {[%clk 0:02:07]}  h6 {[%clk 0:02:27]} 29. Qc3 {[%clk 0:02:04]}  d5 {[%clk 0:02:24]} 30. Bc5 {[%clk 0:01:59]}  dxe4 {[%clk 0:02:16]} 31. Rb8+ {[%clk 0:01:41]}  Kh7 {[%clk 0:02:15]} 32. fxe4 {[%clk 0:01:41]}  Bxe4+ {[%clk 0:02:07]} 33. Kg1 {[%clk 0:01:41]}  Qh3 {[%clk 0:02:00]} 0-1


[Site "https://www.chess.com"]

[Event "Titled Tuesday Blitz March 21 Late 2023"]
[White "Taboas Rodriguez, Daniel"]
[Black "Galaktionov, Artem"]
[WhiteFideId "2208466"]
[BlackFideId "24175471"]
[WhiteElo "2365"]
[BlackElo "2340"]
[Result "1-0"]
[Round "07"]
[TimeControl "180+2"]
[Date "2023.03.21"]
[WhiteClock "0:00:07"]
[BlackClock "0:00:14"]

1. d4 {[%clk 0:03:00]}  c6 {[%clk 0:02:59]} 2. c4 {[%clk 0:02:58]}  g6 {[%clk 0:03:00]} 3. Nc3 {[%clk 0:02:58]}  Bg7 {[%clk 0:02:59]} 4. Nf3 {[%clk 0:02:58]}  d6 {[%clk 0:02:59]} 5. e4 {[%clk 0:02:58]}  Nd7 {[%clk 0:02:55]} 6. Be2 {[%clk 0:02:57]}  e5 {[%clk 0:02:55]} 7. O-O {[%clk 0:02:58]}  Ngf6 {[%clk 0:02:55]} 8. Be3 {[%clk 0:02:56]}  O-O {[%clk 0:02:54]} 9. d5 {[%clk 0:02:56]}  c5 {[%clk 0:02:54]} 10. Ne1 {[%clk 0:02:56]}  Ne8 {[%clk 0:02:54]} 11. g4 {[%clk 0:02:56]}  f5 {[%clk 0:02:53]} 12. gxf5 {[%clk 0:02:57]}  gxf5 {[%clk 0:02:54]} 13. exf5 {[%clk 0:02:57]}  Nb6 {[%clk 0:02:54]} 14. Kh1 {[%clk 0:02:50]}  Bxf5 {[%clk 0:02:51]} 15. Rg1 {[%clk 0:02:50]}  Kh8 {[%clk 0:02:38]} 16. Bd3 {[%clk 0:02:45]}  Qd7 {[%clk 0:02:35]} 17. Rc1 {[%clk 0:02:11]}  Nf6 {[%clk 0:02:29]} 18. Rg5 {[%clk 0:01:52]}  e4 {[%clk 0:02:22]} 19. Be2 {[%clk 0:01:47]}  Rg8 {[%clk 0:01:57]} 20. Ng2 {[%clk 0:01:39]}  Bh6 {[%clk 0:01:40]} 21. Rxg8+ {[%clk 0:01:38]}  Nxg8 {[%clk 0:01:41]} 22. Qd2 {[%clk 0:01:30]}  Bg7 {[%clk 0:01:28]} 23. Rg1 {[%clk 0:01:21]}  Rf8 {[%clk 0:01:17]} 24. Nh4 {[%clk 0:01:12]}  Qe7 {[%clk 0:00:30]} 25. Bg5 {[%clk 0:01:04]}  Qe5 {[%clk 0:00:27]} 26. Bf4 {[%clk 0:00:56]}  Qe7 {[%clk 0:00:27]} 27. Nxf5 {[%clk 0:00:48]}  Rxf5 {[%clk 0:00:28]} 28. Nb5 {[%clk 0:00:48]}  Be5 {[%clk 0:00:22]} 29. Bxe5+ {[%clk 0:00:43]}  Qxe5 {[%clk 0:00:23]} 30. Bg4 {[%clk 0:00:20]}  Rg5 {[%clk 0:00:19]} 31. b3 {[%clk 0:00:20]}  Nf6 {[%clk 0:00:19]} 32. Be6 {[%clk 0:00:20]}  Rxg1+ {[%clk 0:00:19]} 33. Kxg1 {[%clk 0:00:21]}  a6 {[%clk 0:00:18]} 34. Nc7 {[%clk 0:00:20]}  Kg7 {[%clk 0:00:17]} 35. Kg2 {[%clk 0:00:19]}  Kg6 {[%clk 0:00:16]} 36. Bh3 {[%clk 0:00:19]}  Qg5+ {[%clk 0:00:16]} 37. Qxg5+ {[%clk 0:00:19]}  Kxg5 {[%clk 0:00:17]} 38. Ne6+ {[%clk 0:00:18]}  Kg6 {[%clk 0:00:17]} 39. Nd8 {[%clk 0:00:18]}  Nbd7 {[%clk 0:00:17]} 40. Nxb7 {[%clk 0:00:18]}  Ne5 {[%clk 0:00:17]} 41. Nxd6 {[%clk 0:00:18]}  Nd3 {[%clk 0:00:17]} 42. Bf5+ {[%clk 0:00:16]}  Kg5 {[%clk 0:00:17]} 43. Bxe4 {[%clk 0:00:17]}  Nc1 {[%clk 0:00:17]} 44. Bb1 {[%clk 0:00:17]}  Kf4 {[%clk 0:00:17]} 45. Nb7 {[%clk 0:00:16]}  Ke5 {[%clk 0:00:16]} 46. Nxc5 {[%clk 0:00:15]}  Ne2 {[%clk 0:00:17]} 47. Nxa6 {[%clk 0:00:15]}  Nc3 {[%clk 0:00:17]} 48. Bd3 {[%clk 0:00:15]}  Nxa2 {[%clk 0:00:17]} 49. Nc5 {[%clk 0:00:12]}  Kd4 {[%clk 0:00:17]} 50. Ne6+ {[%clk 0:00:06]}  Kxd3 {[%clk 0:00:17]} 51. d6 {[%clk 0:00:06]}  Nb4 {[%clk 0:00:16]} 52. Kf3 {[%clk 0:00:05]}  Nc6 {[%clk 0:00:15]} 53. Kf4 {[%clk 0:00:05]}  Nd7 {[%clk 0:00:16]} 54. Ng5 {[%clk 0:00:02]}  Kc3 {[%clk 0:00:16]} 55. Nxh7 {[%clk 0:00:02]}  Kxb3 {[%clk 0:00:16]} 56. h4 {[%clk 0:00:03]}  Kxc4 {[%clk 0:00:16]} 57. h5 {[%clk 0:00:03]}  Kd5 {[%clk 0:00:16]} 58. h6 {[%clk 0:00:04]}  Kxd6 {[%clk 0:00:17]} 59. Kf5 {[%clk 0:00:04]}  Nce5 {[%clk 0:00:16]} 60. Nf6 {[%clk 0:00:04]}  Nxf6 {[%clk 0:00:16]} 61. Kxf6 {[%clk 0:00:05]}  Ng4+ {[%clk 0:00:16]} 62. Kg7 {[%clk 0:00:05]}  Nxh6 {[%clk 0:00:09]} 63. Kxh6 {[%clk 0:00:05]}  Ke5 {[%clk 0:00:09]} 64. Kg5 {[%clk 0:00:06]}  Ke6 {[%clk 0:00:09]} 65. f4 {[%clk 0:00:04]}  Kf7 {[%clk 0:00:10]} 66. Kf5 {[%clk 0:00:05]}  Kg7 {[%clk 0:00:11]} 67. Ke6 {[%clk 0:00:05]}  Kf8 {[%clk 0:00:11]} 68. f5 {[%clk 0:00:06]}  Ke8 {[%clk 0:00:12]} 69. f6 {[%clk 0:00:04]}  Kf8 {[%clk 0:00:13]} 70. f7 {[%clk 0:00:05]}  Kg7 {[%clk 0:00:13]} 71. Ke7 {[%clk 0:00:06]}  Kh7 {[%clk 0:00:13]} 72. f8=Q {[%clk 0:00:07]}  Kg6 {[%clk 0:00:13]} 73. Qg8+ {[%clk 0:00:07]}  Kh6 {[%clk 0:00:14]} 74. Qg4 {[%clk 0:00:07]} 1-0


[Site "https://www.chess.com"]

[Event "Titled Tuesday Blitz March 21 Late 2023"]
[White "Kobo, Ori"]
[Black "Seemann, Jakub"]
[WhiteFideId "2812320"]
[BlackFideId "21874697"]
[WhiteElo "2447"]
[BlackElo "2364"]
[Result "1-0"]
[Round "07"]
[TimeControl "180+2"]
[Date "2023.03.21"]
[WhiteClock "0:00:41"]
[BlackClock "0:00:03"]

1. e4 {[%clk 0:03:00]}  c6 {[%clk 0:02:59]} 2. Nf3 {[%clk 0:03:01]}  d5 {[%clk 0:02:57]} 3. e5 {[%clk 0:03:01]}  Bf5 {[%clk 0:02:54]} 4. a4 {[%clk 0:03:01]}  e6 {[%clk 0:02:53]} 5. d4 {[%clk 0:03:01]}  Nd7 {[%clk 0:02:51]} 6. Be2 {[%clk 0:02:59]}  h6 {[%clk 0:02:51]} 7. O-O {[%clk 0:02:59]}  Ne7 {[%clk 0:02:52]} 8. a5 {[%clk 0:02:51]}  g5 {[%clk 0:02:51]} 9. b4 {[%clk 0:02:45]}  a6 {[%clk 0:02:45]} 10. Ne1 {[%clk 0:02:42]}  Bg7 {[%clk 0:02:45]} 11. f4 {[%clk 0:02:33]}  gxf4 {[%clk 0:02:43]} 12. Bxf4 {[%clk 0:02:33]}  Ng6 {[%clk 0:02:43]} 13. Bd3 {[%clk 0:02:33]}  Bxd3 {[%clk 0:02:35]} 14. Nxd3 {[%clk 0:02:34]}  Qh4 {[%clk 0:02:26]} 15. c3 {[%clk 0:02:23]}  O-O-O {[%clk 0:02:22]} 16. Ra2 {[%clk 0:02:13]}  Rdf8 {[%clk 0:02:18]} 17. Raf2 {[%clk 0:02:11]}  h5 {[%clk 0:02:12]} 18. Nd2 {[%clk 0:02:07]}  Qe7 {[%clk 0:02:09]} 19. Nb3 {[%clk 0:02:01]}  h4 {[%clk 0:01:53]} 20. h3 {[%clk 0:01:52]}  Rhg8 {[%clk 0:01:43]} 21. Bh2 {[%clk 0:01:45]}  f5 {[%clk 0:01:35]} 22. exf6 {[%clk 0:01:39]}  Nxf6 {[%clk 0:01:35]} 23. Nbc5 {[%clk 0:01:38]}  Bh6 {[%clk 0:00:30]} 24. Re1 {[%clk 0:01:25]}  Ne4 {[%clk 0:00:13]} 25. Nxe4 {[%clk 0:01:25]}  dxe4 {[%clk 0:00:13]} 26. Rxe4 {[%clk 0:01:24]}  Rxf2 {[%clk 0:00:12]} 27. Nxf2 {[%clk 0:01:23]}  Qf7 {[%clk 0:00:09]} 28. Ng4 {[%clk 0:01:01]}  Bf4 {[%clk 0:00:06]} 29. Qf3 {[%clk 0:00:52]}  Rf8 {[%clk 0:00:04]} 30. Bxf4 {[%clk 0:00:49]}  Nxf4 {[%clk 0:00:04]} 31. Ne5 {[%clk 0:00:47]}  Qf5 {[%clk 0:00:05]} 32. Kh2 {[%clk 0:00:43]}  Kb8 {[%clk 0:00:03]} 33. Nd7+ {[%clk 0:00:41]} 1-0


[Site "https://www.chess.com"]

[Event "Titled Tuesday Blitz March 21 Late 2023"]
[White "Raja Rithvik R"]
[Black "Medina Paz, Miguel"]
[WhiteFideId "35007394"]
[BlackFideId "7300379"]
[WhiteElo "2402"]
[BlackElo "2428"]
[Result "1-0"]
[Round "07"]
[TimeControl "180+2"]
[Date "2023.03.21"]
[WhiteClock "0:01:16"]
[BlackClock "0:01:34"]

1. b3 {[%clk 0:03:00]}  Nf6 {[%clk 0:02:55]} 2. Bb2 {[%clk 0:03:01]}  d5 {[%clk 0:02:55]} 3. e3 {[%clk 0:03:02]}  c6 {[%clk 0:02:56]} 4. f4 {[%clk 0:03:01]}  Bg4 {[%clk 0:02:55]} 5. Be2 {[%clk 0:02:58]}  Bxe2 {[%clk 0:02:54]} 6. Qxe2 {[%clk 0:02:59]}  Nbd7 {[%clk 0:02:54]} 7. g4 {[%clk 0:02:57]}  e6 {[%clk 0:02:46]} 8. g5 {[%clk 0:02:56]}  Ng8 {[%clk 0:02:45]} 9. Nf3 {[%clk 0:02:55]}  a5 {[%clk 0:02:40]} 10. a4 {[%clk 0:02:52]}  Ne7 {[%clk 0:02:37]} 11. d3 {[%clk 0:02:42]}  Qb6 {[%clk 0:02:36]} 12. Nbd2 {[%clk 0:02:34]}  O-O-O {[%clk 0:02:27]} 13. O-O-O {[%clk 0:02:24]}  c5 {[%clk 0:02:18]} 14. h4 {[%clk 0:02:17]}  Nc6 {[%clk 0:02:16]} 15. h5 {[%clk 0:02:16]}  Rg8 {[%clk 0:02:13]} 16. g6 {[%clk 0:01:57]}  fxg6 {[%clk 0:02:10]} 17. hxg6 {[%clk 0:01:58]}  h6 {[%clk 0:02:10]} 18. Qg2 {[%clk 0:01:54]}  c4 {[%clk 0:02:01]} 19. dxc4 {[%clk 0:01:53]}  Qxe3 {[%clk 0:01:59]} 20. Rhe1 {[%clk 0:01:38]}  Qxf4 {[%clk 0:01:59]} 21. Rxe6 {[%clk 0:01:39]}  Nc5 {[%clk 0:01:50]} 22. Qh3 {[%clk 0:01:29]}  Kb8 {[%clk 0:01:45]} 23. Rxc6 {[%clk 0:01:28]}  bxc6 {[%clk 0:01:45]} 24. Be5+ {[%clk 0:01:29]}  Bd6 {[%clk 0:01:42]} 25. Bxf4 {[%clk 0:01:29]}  Bxf4 {[%clk 0:01:42]} 26. Nd4 {[%clk 0:01:22]}  Kb7 {[%clk 0:01:37]} 27. Ne6 {[%clk 0:01:14]}  Nxe6 {[%clk 0:01:36]} 28. Qxe6 {[%clk 0:01:15]}  dxc4 {[%clk 0:01:36]} 29. Qf7+ {[%clk 0:01:15]}  Bc7 {[%clk 0:01:34]} 30. Nxc4 {[%clk 0:01:16]} 1-0


[Site "https://www.chess.com"]

[Event "Titled Tuesday Blitz March 21 Late 2023"]
[White "Averjanov, Alexey"]
[Black "Papp, Levente"]
[WhiteFideId "14109867"]
[BlackFideId "751243"]
[WhiteElo "2802"]
[BlackElo "2380"]
[Result "0-1"]
[Round "07"]
[TimeControl "180+2"]
[Date "2023.03.21"]
[WhiteClock "0:00:13"]
[BlackClock "0:00:10"]

1. d4 {[%clk 0:03:00]}  e6 {[%clk 0:02:59]} 2. c4 {[%clk 0:02:56]}  Nf6 {[%clk 0:02:57]} 3. Nf3 {[%clk 0:02:56]}  d5 {[%clk 0:02:55]} 4. e3 {[%clk 0:02:56]}  a6 {[%clk 0:02:53]} 5. Nbd2 {[%clk 0:02:56]}  dxc4 {[%clk 0:02:52]} 6. Bxc4 {[%clk 0:02:55]}  b5 {[%clk 0:02:52]} 7. Bd3 {[%clk 0:02:55]}  c5 {[%clk 0:02:52]} 8. O-O {[%clk 0:02:51]}  Bb7 {[%clk 0:02:51]} 9. a4 {[%clk 0:02:49]}  c4 {[%clk 0:02:49]} 10. Bc2 {[%clk 0:02:47]}  Be7 {[%clk 0:02:46]} 11. axb5 {[%clk 0:02:47]}  axb5 {[%clk 0:02:46]} 12. Rxa8 {[%clk 0:02:48]}  Bxa8 {[%clk 0:02:47]} 13. Qe2 {[%clk 0:02:48]}  Nc6 {[%clk 0:02:46]} 14. Ne4 {[%clk 0:02:32]}  O-O {[%clk 0:02:37]} 15. Bd2 {[%clk 0:02:26]}  Nxe4 {[%clk 0:02:17]} 16. Bxe4 {[%clk 0:02:27]}  Nb4 {[%clk 0:02:18]} 17. Bxa8 {[%clk 0:02:20]}  Qxa8 {[%clk 0:02:19]} 18. Bxb4 {[%clk 0:02:04]}  Bxb4 {[%clk 0:02:20]} 19. Rc1 {[%clk 0:01:45]}  Qe4 {[%clk 0:01:41]} 20. Ne1 {[%clk 0:01:38]}  Bxe1 {[%clk 0:01:05]} 21. Qxe1 {[%clk 0:01:35]}  f5 {[%clk 0:00:44]} 22. g3 {[%clk 0:01:28]}  h5 {[%clk 0:00:38]} 23. h4 {[%clk 0:01:25]}  g5 {[%clk 0:00:34]} 24. hxg5 {[%clk 0:01:25]}  h4 {[%clk 0:00:35]} 25. gxh4 {[%clk 0:00:53]}  Qxh4 {[%clk 0:00:34]} 26. f4 {[%clk 0:00:49]}  Qg4+ {[%clk 0:00:32]} 27. Kf2 {[%clk 0:00:50]}  Ra8 {[%clk 0:00:25]} 28. Qh1 {[%clk 0:00:44]}  Ra2 {[%clk 0:00:18]} 29. Rc2 {[%clk 0:00:43]}  c3 {[%clk 0:00:15]} 30. Qc6 {[%clk 0:00:32]}  Rxb2 {[%clk 0:00:06]} 31. Qxe6+ {[%clk 0:00:28]}  Kh8 {[%clk 0:00:06]} 32. Qf6+ {[%clk 0:00:27]}  Kg8 {[%clk 0:00:06]} 33. Qd8+ {[%clk 0:00:26]}  Kh7 {[%clk 0:00:06]} 34. Qc7+ {[%clk 0:00:26]}  Kg8 {[%clk 0:00:06]} 35. Qc8+ {[%clk 0:00:25]}  Kh7 {[%clk 0:00:07]} 36. Qc7+ {[%clk 0:00:25]}  Kg8 {[%clk 0:00:07]} 37. Qxc3 {[%clk 0:00:21]}  Qh4+ {[%clk 0:00:07]} 38. Ke2 {[%clk 0:00:20]}  Qg4+ {[%clk 0:00:06]} 39. Kd3 {[%clk 0:00:17]}  Qd1+ {[%clk 0:00:06]} 40. Rd2 {[%clk 0:00:17]}  Rxd2+ {[%clk 0:00:06]} 41. Qxd2 {[%clk 0:00:17]}  Qb3+ {[%clk 0:00:05]} 42. Qc3 {[%clk 0:00:17]}  Qd1+ {[%clk 0:00:06]} 43. Qd2 {[%clk 0:00:17]}  Qb3+ {[%clk 0:00:06]} 44. Ke2 {[%clk 0:00:18]}  b4 {[%clk 0:00:06]} 45. Qd3 {[%clk 0:00:14]}  Qa2+ {[%clk 0:00:06]} 46. Kf3 {[%clk 0:00:14]}  Qd5+ {[%clk 0:00:06]} 47. e4 {[%clk 0:00:10]}  fxe4+ {[%clk 0:00:03]} 48. Qxe4 {[%clk 0:00:11]}  Qb3+ {[%clk 0:00:02]} 49. Kg4 {[%clk 0:00:11]}  Qd1+ {[%clk 0:00:03]} 50. Kf5 {[%clk 0:00:10]}  b3 {[%clk 0:00:03]} 51. g6 {[%clk 0:00:09]}  Qc2 {[%clk 0:00:03]} 52. d5 {[%clk 0:00:04]}  Qxe4+ {[%clk 0:00:04]} 53. Kxe4 {[%clk 0:00:04]}  b2 {[%clk 0:00:05]} 54. Ke5 {[%clk 0:00:05]}  b1=Q {[%clk 0:00:05]} 55. f5 {[%clk 0:00:05]}  Qb6 {[%clk 0:00:05]} 56. d6 {[%clk 0:00:05]}  Kg7 {[%clk 0:00:05]} 57. Ke6 {[%clk 0:00:06]}  Qd8 {[%clk 0:00:05]} 58. d7 {[%clk 0:00:06]}  Qf6+ {[%clk 0:00:05]} 59. Kd5 {[%clk 0:00:06]}  Qxf5+ {[%clk 0:00:05]} 60. Kc6 {[%clk 0:00:07]}  Qe6+ {[%clk 0:00:06]} 61. Kc7 {[%clk 0:00:07]}  Qe7 {[%clk 0:00:06]} 62. Kc8 {[%clk 0:00:07]}  Qc5+ {[%clk 0:00:07]} 63. Kb7 {[%clk 0:00:08]}  Qb5+ {[%clk 0:00:06]} 64. Kc7 {[%clk 0:00:08]}  Qc5+ {[%clk 0:00:07]} 65. Kb7 {[%clk 0:00:09]}  Qd6 {[%clk 0:00:07]} 66. Kc8 {[%clk 0:00:09]}  Qc6+ {[%clk 0:00:08]} 67. Kd8 {[%clk 0:00:10]}  Kxg6 {[%clk 0:00:08]} 68. Ke7 {[%clk 0:00:10]}  Qc7 {[%clk 0:00:08]} 69. Ke8 {[%clk 0:00:11]}  Qe5+ {[%clk 0:00:09]} 70. Kf8 {[%clk 0:00:11]}  Qd6+ {[%clk 0:00:07]} 71. Ke8 {[%clk 0:00:12]}  Qe6+ {[%clk 0:00:07]} 72. Kd8 {[%clk 0:00:12]}  Kf7 {[%clk 0:00:08]} 73. Kc8 {[%clk 0:00:11]}  Ke7 {[%clk 0:00:07]} 74. Kb8 {[%clk 0:00:12]}  Qxd7 {[%clk 0:00:08]} 75. Ka8 {[%clk 0:00:12]}  Kd6 {[%clk 0:00:08]} 76. Kb8 {[%clk 0:00:13]}  Kc6 {[%clk 0:00:09]} 77. Ka8 {[%clk 0:00:13]}  Qb7# {[%clk 0:00:10]} 0-1


[Site "https://www.chess.com"]

[Event "Titled Tuesday Blitz March 21 Late 2023"]
[White "TimGrutter03"]
[Black "Holt, Conrad"]
[BlackFideId "2034387"]
[WhiteElo "2562"]
[BlackElo "2592"]
[Result "0-1"]
[Round "07"]
[TimeControl "180+2"]
[Date "2023.03.21"]
[WhiteClock "0:00:04"]
[BlackClock "0:00:52"]

1. g3 {[%clk 0:03:00]}  d5 {[%clk 0:02:56]} 2. Bg2 {[%clk 0:03:01]}  e5 {[%clk 0:02:56]} 3. d3 {[%clk 0:03:01]}  Nf6 {[%clk 0:02:56]} 4. Nf3 {[%clk 0:02:58]}  Bd6 {[%clk 0:02:55]} 5. O-O {[%clk 0:02:57]}  O-O {[%clk 0:02:54]} 6. e4 {[%clk 0:02:58]}  dxe4 {[%clk 0:02:42]} 7. dxe4 {[%clk 0:02:59]}  Nxe4 {[%clk 0:02:43]} 8. Nxe5 {[%clk 0:02:27]}  Nxf2 {[%clk 0:02:40]} 9. Rxf2 {[%clk 0:02:17]}  Bxe5 {[%clk 0:02:40]} 10. Qxd8 {[%clk 0:02:11]}  Rxd8 {[%clk 0:02:39]} 11. c3 {[%clk 0:02:12]}  Rd1+ {[%clk 0:02:35]} 12. Rf1 {[%clk 0:02:12]}  Rxf1+ {[%clk 0:02:34]} 13. Kxf1 {[%clk 0:02:11]}  c6 {[%clk 0:02:33]} 14. Nd2 {[%clk 0:02:10]}  Be6 {[%clk 0:02:33]} 15. Nf3 {[%clk 0:02:05]}  Bf6 {[%clk 0:02:31]} 16. Bg5 {[%clk 0:01:54]}  Nd7 {[%clk 0:02:30]} 17. Bxf6 {[%clk 0:01:54]}  Nxf6 {[%clk 0:02:30]} 18. b3 {[%clk 0:01:49]}  Rd8 {[%clk 0:02:26]} 19. Nd4 {[%clk 0:01:43]}  Bd5 {[%clk 0:02:26]} 20. Re1 {[%clk 0:01:32]}  Bxg2+ {[%clk 0:02:21]} 21. Kxg2 {[%clk 0:01:33]}  Kf8 {[%clk 0:02:21]} 22. Kf3 {[%clk 0:01:32]}  g6 {[%clk 0:02:15]} 23. Re2 {[%clk 0:01:21]}  Nd5 {[%clk 0:02:09]} 24. c4 {[%clk 0:01:17]}  Nb4 {[%clk 0:01:58]} 25. Rd2 {[%clk 0:01:02]}  Rd6 {[%clk 0:01:53]} 26. a3 {[%clk 0:00:38]}  Nc2 {[%clk 0:01:45]} 27. Rxc2 {[%clk 0:00:36]}  Rxd4 {[%clk 0:01:45]} 28. Ke3 {[%clk 0:00:35]}  Rd1 {[%clk 0:01:44]} 29. Kf4 {[%clk 0:00:31]}  Rd3 {[%clk 0:01:32]} 30. Rb2 {[%clk 0:00:30]}  f5 {[%clk 0:01:30]} 31. Ke5 {[%clk 0:00:25]}  Ke7 {[%clk 0:01:30]} 32. a4 {[%clk 0:00:24]}  Re3+ {[%clk 0:01:22]} 33. Kf4 {[%clk 0:00:18]}  Re4+ {[%clk 0:01:20]} 34. Kg5 {[%clk 0:00:16]}  Kf7 {[%clk 0:01:19]} 35. Kh6 {[%clk 0:00:13]}  Kf6 {[%clk 0:01:15]} 36. Kxh7 {[%clk 0:00:11]}  g5 {[%clk 0:01:14]} 37. Rd2 {[%clk 0:00:09]}  f4 {[%clk 0:01:09]} 38. gxf4 {[%clk 0:00:09]}  gxf4 {[%clk 0:01:09]} 39. h4 {[%clk 0:00:09]}  f3 {[%clk 0:01:03]} 40. h5 {[%clk 0:00:09]}  Kg5 {[%clk 0:00:58]} 41. Rf2 {[%clk 0:00:04]}  Re7+ {[%clk 0:00:54]} 42. Kg8 {[%clk 0:00:03]}  Re3 {[%clk 0:00:52]} 43. Kf7 {[%clk 0:00:03]}  Kxh5 {[%clk 0:00:52]} 44. Kf6 {[%clk 0:00:03]}  Kg4 {[%clk 0:00:52]} 45. a5 {[%clk 0:00:02]}  Kg3 {[%clk 0:00:51]} 46. Rb2 {[%clk 0:00:02]}  f2 {[%clk 0:00:52]} 47. Rxf2 {[%clk 0:00:03]}  Kxf2 {[%clk 0:00:52]} 48. b4 {[%clk 0:00:04]}  Re4 {[%clk 0:00:52]} 0-1


[Site "https://www.chess.com"]

[Event "Titled Tuesday Blitz March 21 Late 2023"]
[White "Adewumi, Tanitoluwa"]
[Black "Sztokbant, Bernardo Vainzoff"]
[WhiteFideId "30966396"]
[BlackFideId "2115956"]
[WhiteElo "2759"]
[BlackElo "2222"]
[Result "1-0"]
[Round "07"]
[TimeControl "180+2"]
[Date "2023.03.21"]
[WhiteClock "0:00:14"]
[BlackClock "0:00:01"]

1. e4 {[%clk 0:03:00]}  c5 {[%clk 0:03:00]} 2. Nf3 {[%clk 0:02:55]}  d6 {[%clk 0:02:59]} 3. Bb5+ {[%clk 0:02:52]}  Bd7 {[%clk 0:02:59]} 4. Bxd7+ {[%clk 0:02:52]}  Qxd7 {[%clk 0:03:00]} 5. c4 {[%clk 0:02:51]}  Nc6 {[%clk 0:03:00]} 6. Nc3 {[%clk 0:02:51]}  g6 {[%clk 0:02:58]} 7. d4 {[%clk 0:02:51]}  cxd4 {[%clk 0:02:58]} 8. Nxd4 {[%clk 0:02:52]}  Bg7 {[%clk 0:02:59]} 9. Be3 {[%clk 0:02:53]}  Nf6 {[%clk 0:02:59]} 10. f3 {[%clk 0:02:53]}  O-O {[%clk 0:02:59]} 11. Rc1 {[%clk 0:02:53]}  Rac8 {[%clk 0:02:58]} 12. b3 {[%clk 0:02:53]}  Nxd4 {[%clk 0:02:50]} 13. Bxd4 {[%clk 0:02:52]}  a6 {[%clk 0:02:49]} 14. Na4 {[%clk 0:02:47]}  Qe6 {[%clk 0:02:38]} 15. O-O {[%clk 0:02:23]}  b5 {[%clk 0:02:32]} 16. Nb6 {[%clk 0:02:18]}  Rb8 {[%clk 0:02:21]} 17. cxb5 {[%clk 0:01:49]}  axb5 {[%clk 0:02:22]} 18. Qd3 {[%clk 0:01:48]}  Nd7 {[%clk 0:01:04]} 19. Bxg7 {[%clk 0:01:14]}  Kxg7 {[%clk 0:01:03]} 20. Nd5 {[%clk 0:01:12]}  Rfc8 {[%clk 0:00:55]} 21. Rxc8 {[%clk 0:01:01]}  Rxc8 {[%clk 0:00:55]} 22. Qxb5 {[%clk 0:00:59]}  Rc2 {[%clk 0:00:51]} 23. a4 {[%clk 0:00:54]}  Qe5 {[%clk 0:00:47]} 24. Qxd7 {[%clk 0:00:26]}  Qb2 {[%clk 0:00:15]} 25. Qg4 {[%clk 0:00:23]}  h5 {[%clk 0:00:12]} 26. Qg3 {[%clk 0:00:23]}  h4 {[%clk 0:00:08]} 27. Qh3 {[%clk 0:00:20]}  Qxb3 {[%clk 0:00:07]} 28. Qxh4 {[%clk 0:00:18]}  Qb2 {[%clk 0:00:04]} 29. Qg3 {[%clk 0:00:17]}  Qa2 {[%clk 0:00:04]} 30. Nb4 {[%clk 0:00:15]}  Qxa4 {[%clk 0:00:02]} 31. Nxc2 {[%clk 0:00:14]}  Qxc2 {[%clk 0:00:02]} 32. e5 {[%clk 0:00:15]}  Qc5+ {[%clk 0:00:01]} 33. Qf2 {[%clk 0:00:15]}  Qxe5 {[%clk 0:00:02]} 34. Rb1 {[%clk 0:00:14]}  f6 {[%clk 0:00:01]} 35. Re1 {[%clk 0:00:14]} 1-0


[Site "https://www.chess.com"]